bitfinex-derivatives/quotes_SOLF0:USTF0_20260202
["timestamp","ask_amount","ask_price","bid_price","bid_amount"]
[1770016685986,147.9801,100.81,100.72,75.8944111]
[1770016686186,139.0419,100.81,100.72,75.8944111]
[1770016686690,139.029,100.82,100.73,83.29570882]
[1770016686882,139.0232,100.82,100.73,83.29570882]
[1770016687284,8.9374,100.82,100.74,75.8944111]
[1770016687486,139.0061,100.84,100.74,75.8944111]
[1770016687683,139.036,100.82,100.74,75.8944111]
[1770016687881,139.0488,100.81,100.74,75.8944111]
[1770016688084,139.0775,100.79,100.74,75.8944111]
[1770016688283,139.0775,100.79,100.71,472.336601]
[1770016688483,139.0775,100.79,100.72,75.856601]
[1770016688682,8.9412,100.79,100.72,75.856601]
[1770016688885,139.0634,100.8,100.72,75.856601]
[1770016689088,139.0488,100.81,100.72,75.856601]
[1770016689291,139.0775,100.79,100.72,75.856601]
[1770016689888,8.9412,100.79,100.72,75.856601]
[1770016690089,139.0488,100.81,100.72,75.856601]
[1770016690687,8.94,100.8,100.72,75.856601]
[1770016691186,148.0032,100.8,100.72,75.856601]
[1770016691384,139.0774,100.79,100.72,75.856601]
[1770016691578,139.0774,100.79,100.71,396.48]
[1770016691783,139.0774,100.79,100.71,472.336601]
[1770016691986,139.0774,100.79,100.71,75.856601]
[1770016692386,746.2458,100.85,100.71,75.856601]
[1770016692387,155.34339772,100.85,100.76,75.856601]
[1770016692588,8.9353,100.85,100.77,5.38195354]
[1770016692883,8.9353,100.85,100.78,5.38195354]
[1770016693090,147.9005,100.87,100.79,5.38195354]
[1770016693386,8.9338,100.87,100.8,5.38195354]
[1770016693689,8.9338,100.87,100.81,5.38195354]
[1770016693890,8.9338,100.87,100.82,5.38195354]
[1770016694084,8.9338,100.87,100.8,75.856601]
[1770016694290,147.9034,100.87,100.8,75.856601]
[1770016694487,7.40129772,100.89,100.8,75.856601]
[1770016694488,147.8715,100.89,100.8,75.856601]
[1770016694681,138.9239,100.91,100.82,75.856601]
[1770016694879,138.9239,100.91,100.83,5.36193931]
[1770016695081,138.9239,100.91,100.82,75.856601]
[1770016695082,138.9248,100.9,100.82,75.856601]
[1770016695384,138.9239,100.91,100.83,5.34978185]
[1770016695587,138.9083,100.92,100.84,5.34978185]
[1770016695780,138.9083,100.92,100.83,75.856601]
[1770016695987,147.8378,100.92,100.84,5.34837056]
[1770016696190,138.8823,100.94,100.84,75.856601]
[1770016696390,146.26999772,100.95,100.85,88.59436991]
[1770016696391,138.8687,100.95,100.85,88.59436991]
[1770016696586,138.8687,100.95,100.86,5.33503657]
[1770016696891,138.8422,100.96,100.87,81.19046775]
[1770016697185,138.8698,100.94,100.85,75.856601]
[1770016697388,147.7974,100.94,100.85,75.856601]
[1770016697686,138.8834,100.93,100.85,75.856601]
[1770016697886,138.8999,100.92,100.85,75.856601]
[1770016698091,8.9295,100.92,100.85,75.856601]
[1770016698291,138.8698,100.94,100.85,75.856601]
[1770016698788,8.9277,100.94,100.86,75.85516693]
[1770016698984,138.8562,100.95,100.86,75.85516693]
[1770016699184,146.24219772,100.97,100.87,75.85516693]
[1770016699383,8.9213,101.01,100.9,138.9237]
[1770016699583,8.9213,101.01,100.91,214.755801]
[1770016699584,147.6957,101.01,100.91,214.755801]
[1770016699796,8.9213,101.01,100.92,75.856601]
[1770016699985,146.12039772,101.05,100.95,147.7795]
[1770016700187,138.719,101.05,100.95,223.636101]
[1770016700494,138.7322,101.04,100.95,75.856601]
[1770016700692,138.6962,101.07,100.95,214.705601]
[1770016700889,146.09749772,101.07,100.97,138.823]
[1770016701092,138.703,101.06,100.97,75.856601]
[1770016701290,138.7034,101.06,100.97,75.856601]
[1770016701494,138.7034,101.06,100.95,138.849]
[1770016701495,138.7198,101.05,100.95,75.856601]
[1770016701788,138.7174,101.05,100.96,75.856601]
[1770016701992,138.7374,101.04,100.96,75.856601]
[1770016702189,146.11869772,101.05,100.96,75.856601]
[1770016702593,138.7295,101.04,100.96,75.856601]
[1770016702789,147.6472,101.04,100.96,75.856601]
[1770016703190,146.11869772,101.05,100.96,75.856601]
[1770016703489,138.7186,101.04,100.96,75.856601]
[1770016703686,155.03539772,101.05,100.96,75.856601]
[1770016703888,147.6112,101.07,100.97,214.670301]
[1770016704091,147.6112,101.07,100.98,75.856601]
[1770016704598,138.705,101.05,100.95,75.856601]
[1770016704795,138.7188,101.04,100.95,75.856601]
[1770016705489,415.8975,101.12,100.95,75.856601]
[1770016705792,138.6809,101.07,100.99,75.856601]
[1770016705992,138.691,101.06,100.96,214.676101]
[1770016706195,138.6809,101.07,100.97,75.856601]
[1770016707393,147.5958,101.07,100.97,75.856601]
[1770016707596,138.6179,101.12,101.02,138.7444]
[1770016707895,138.6223,101.11,101.02,75.856601]
[1770016708099,138.6503,101.09,100.99,75.856601]
[1770016708490,138.6652,101.08,100.99,75.856601]
[1770016709387,8.914,101.08,100.99,75.856601]
[1770016709593,138.6829,101.07,100.99,75.856601]
[1770016710702,138.6935,101.06,100.99,75.856601]
[1770016711092,138.6829,101.07,100.99,75.856601]
[1770016711695,8.916,101.06,100.99,75.856601]
[1770016711994,138.6829,101.07,100.99,75.856601]
[1770016712396,138.6503,101.09,101.0,75.856601]
[1770016712699,146.03149772,101.11,101.01,75.856601]
[1770016712700,138.6362,101.1,101.01,75.856601]
[1770016713495,138.6532,101.09,101.01,75.856601]
[1770016714193,147.5815,101.08,101.01,75.856601]
[1770016714593,8.9145,101.08,101.01,75.856601]
[1770016715098,138.6232,101.11,101.02,75.856601]
[1770016715294,7.40129772,101.12,101.02,75.856601]
[1770016715498,147.535,101.11,101.02,75.856601]
[1770016715690,138.646,101.1,101.02,75.856601]
[1770016715894,138.6552,101.09,101.02,75.856601]
[1770016716395,138.6231,101.11,101.02,75.856601]
[1770016716895,8.9118,101.11,101.02,75.856601]
[1770016717291,147.5494,101.1,101.02,75.856601]
[1770016717498,138.6368,101.1,101.02,75.856601]
[1770016718099,147.5682,101.09,101.02,75.856601]
[1770016718492,138.668,101.08,100.97,84.60194936]
[1770016718690,146.01282463,101.07,100.98,75.67874936]
[1770016719096,8.9161,101.06,100.98,75.67874936]
[1770016720901,138.6372,101.1,101.01,75.67874936]
[1770016721102,138.613,101.12,101.02,75.67874936]
[1770016721299,138.6243,101.11,101.02,75.67874936]
[1770016722003,8.9135,101.09,101.02,75.67874936]
[1770016722404,8.9145,101.08,101.02,75.67874936]
[1770016722899,147.5538,101.1,101.02,75.67874936]
[1770016723803,8.9129,101.1,101.02,75.67874936]
[1770016724201,7.33272463,101.11,101.02,75.67874936]
[1770016724395,8.9106,101.12,101.04,75.67874936]
[1770016724596,138.5937,101.14,101.05,75.67874936]
[1770016725006,8.9094,101.14,101.05,84.59514936]
[1770016725300,138.5443,101.17,101.08,75.67874936]
[1770016725506,8.9072,101.16,101.08,75.67874936]
[1770016727102,138.5675,101.15,101.05,84.59504936]
[1770016727606,138.6119,101.12,101.05,75.67874936]
[1770016727806,8.9116,101.11,101.05,75.67874936]
[1770016728108,145.93292463,101.13,101.05,75.67874936]
[1770016728308,8.9107,101.12,101.05,75.67874936]
[1770016729111,147.5198,101.12,101.05,75.67874936]
[1770016729511,8.9107,101.12,101.05,75.67874936]
[1770016729710,8.9094,101.14,101.05,75.67874936]
[1770016730012,138.5817,101.14,101.05,75.67874936]
[1770016731312,8.9101,101.13,101.05,75.67874936]
[1770016731507,138.5452,101.17,101.07,75.71086414]
[1770016731712,138.5411,101.17,101.08,75.71086414]
[1770016731911,8.9073,101.16,101.08,84.62406414]
[1770016732213,138.5247,101.19,101.1,75.71086414]
[1770016732408,138.51,101.2,101.1,75.71086414]
[1770016732713,147.4177,101.19,101.1,84.62286414]
[1770016733414,8.9058,101.18,101.1,75.71086414]
[1770016733617,138.5409,101.17,101.1,75.71086414]
[1770016734411,8.9073,101.16,101.1,75.71086414]
[1770016735409,147.4328,101.18,101.1,75.71086414]
[1770016735807,8.9058,101.18,101.1,75.71086414]
[1770016736016,147.4484,101.17,101.07,214.38686414]
[1770016736216,147.4484,101.17,101.08,75.71086414]
[1770016736517,8.9063,101.17,101.08,75.71086414]
[1770016737114,8.9073,101.16,101.08,75.71086414]
[1770016737708,8.9083,101.15,101.08,75.71086414]
[1770016738508,147.4765,101.15,101.08,75.71086414]
[1770016738715,8.909,101.14,101.08,75.71086414]
[1770016740311,8.9099,101.13,101.05,75.71086414]
[1770016740616,138.5951,101.13,101.05,75.71086414]
[1770016740810,138.5415,101.17,101.07,75.71086414]
[1770016741011,138.5415,101.17,101.08,75.71086414]
[1770016741209,138.5561,101.16,101.08,75.71086414]
[1770016741517,8.9089,101.14,101.08,75.71086414]
[1770016741716,138.5812,101.14,101.08,75.71086414]
[1770016741916,8.9124,101.1,101.02,84.62946414]
[1770016742117,138.5556,101.16,101.03,75.71086414]
[1770016742319,138.5548,101.16,101.08,75.71086414]
[1770016742921,138.5453,101.17,101.08,75.71086414]
[1770016743313,138.5359,101.18,101.08,75.71086414]
[1770016743514,138.4967,101.21,101.12,75.71086414]
[1770016744017,8.9039,101.2,101.12,84.62116414]
[1770016744220,8.9039,101.2,101.12,75.71086414]
[1770016744719,8.9057,101.18,101.12,75.71086414]
[1770016745022,8.9057,101.18,101.09,75.71086414]
[1770016745320,138.5155,101.19,101.09,75.71086414]
[1770016746316,147.4329,101.18,101.09,84.62366414]
[1770016746517,8.9054,101.18,101.09,84.62366414]
[1770016747218,8.9037,101.2,101.11,75.71086414]
[1770016747920,8.9046,101.19,101.11,84.62196414]
[1770016748524,8.9031,101.21,101.13,75.69908124]
[1770016749021,138.4708,101.23,101.13,75.69908124]
[1770016749327,138.4708,101.23,101.15,75.69908124]
[1770016749328,8.9014,101.23,101.15,75.69908124]
[1770016749527,138.4591,101.23,101.15,75.69908124]
[1770016749825,8.902,101.22,101.15,75.69908124]
[1770016750622,8.9028,101.21,101.15,75.69908124]
[1770016751126,138.4591,101.23,101.15,75.69908124]
[1770016751524,138.4444,101.24,101.15,75.69908124]
[1770016751820,138.4151,101.27,101.18,75.69908124]
[1770016752026,8.897,101.28,101.18,83.03180587]
[1770016752226,8.897,101.28,101.2,75.69908124]
[1770016752422,138.36,101.31,101.2,75.69908124]
[1770016752619,138.36,101.31,101.21,223.08618124]
[1770016752827,138.36,101.31,101.22,75.69908124]
[1770016753123,138.363,101.3,101.22,75.69908124]
[1770016753322,138.3486,101.31,101.22,75.69908124]
[1770016754032,138.3761,101.29,101.22,75.69908124]
[1770016754224,138.3486,101.31,101.22,75.69908124]
[1770016754530,138.3231,101.33,101.23,75.69908124]
[1770016754932,138.2721,101.37,101.27,75.69908124]
[1770016755123,138.2445,101.39,101.29,75.69908124]
[1770016755531,138.2445,101.39,101.3,7.33272463]
[1770016755832,138.2695,101.37,101.29,75.69908124]
[1770016756033,138.3084,101.34,101.26,83.03180587]
[1770016756228,138.3434,101.32,101.26,75.69908124]
[1770016756529,138.3547,101.31,101.22,7.33272463]
[1770016756931,147.2577,101.3,101.22,7.33272463]
[1770016757130,8.8948,101.3,101.2,145.83132463]
[1770016757431,147.2284,101.32,101.22,7.33272463]
[1770016757730,8.8933,101.32,101.22,145.79942463]
[1770016757921,138.3276,101.33,101.22,145.79942463]
[1770016758126,138.3276,101.33,101.24,7.33272463]
[1770016758326,8.8916,101.34,101.24,145.77342463]
[1770016758528,8.8916,101.34,101.25,69.73677398]
[1770016759220,138.3649,101.31,101.25,69.73677398]
[1770016759425,138.3773,101.3,101.22,69.73691227]
[1770016759627,138.3773,101.3,101.19,69.73691227]
[1770016759628,138.4063,101.28,101.19,69.73691227]
[1770016760222,138.4312,101.26,101.19,69.73691227]
[1770016760426,138.3917,101.29,101.19,69.73691227]
[1770016761028,464.618,101.3,101.2,77.83713979]
[1770016761231,138.392,101.29,101.2,77.83713979]
[1770016761533,138.4065,101.28,101.2,70.50441516]
[1770016762332,147.3042,101.28,101.2,70.50441516]
[1770016762837,138.3636,101.31,101.22,70.78009052]
[1770016763034,138.3375,101.33,101.23,70.78009052]
[1770016763432,8.8942,101.32,101.24,78.11260383]
[1770016763630,138.329,101.34,101.24,78.11260383]
[1770016763930,138.3772,101.3,101.24,70.7798792]
[1770016764133,138.391,101.29,101.21,70.7798792]
[1770016764336,138.3772,101.3,101.21,70.7798792]
[1770016764739,138.3772,101.3,101.21,78.11260383]
[1770016765335,8.8968,101.29,101.21,78.11260383]
[1770016765736,138.3632,101.31,101.21,78.11260383]
[1770016766031,147.2723,101.3,101.21,78.11260383]
[1770016766237,138.3907,101.29,101.21,78.11260383]
[1770016766434,138.3764,101.3,101.21,78.11260383]
[1770016766629,138.3632,101.31,101.21,78.11260383]
[1770016767030,147.2754,101.3,101.21,78.11260383]
[1770016769039,147.2754,101.3,101.19,70.66544952]
[1770016769040,138.4204,101.27,101.19,70.66544952]
[1770016769237,138.4052,101.28,101.19,70.66544952]
[1770016769837,147.3176,101.27,101.19,70.66544952]
[1770016770239,138.3974,101.29,101.2,70.66528913]
[1770016770839,8.8967,101.29,101.2,79.56938913]
[1770016771038,8.8967,101.29,101.22,70.65105611]
[1770016772743,138.3441,101.33,101.23,78.07894358]
[1770016772744,8.8952,101.31,101.23,78.07894358]
[1770016772935,138.3299,101.34,101.24,70.74621895]
[1770016773141,138.2932,101.37,101.27,78.07894358]
[1770016773343,138.3091,101.35,101.27,70.74621895]
[1770016773542,138.2945,101.36,101.27,70.74621895]
[1770016774038,138.3094,101.35,101.27,70.74621895]
[1770016774351,138.337,101.33,101.24,78.07876519]
[1770016774640,8.8942,101.32,101.24,78.07876519]
[1770016774840,147.2431,101.32,101.24,78.07876519]
[1770016775041,147.2431,101.32,101.24,70.74604056]
[1770016775241,138.3775,101.3,101.21,70.80369282]
[1770016775642,138.39,101.29,101.21,70.80369282]
[1770016776140,8.8975,101.28,101.21,70.80369282]
[1770016778441,8.8986,101.27,101.21,70.80369282]
[1770016779440,8.8993,101.26,101.18,70.56455669]
[1770016779742,138.4322,101.26,101.18,70.56455669]
[1770016780039,138.4215,101.27,101.18,70.56455669]
[1770016780642,8.8993,101.26,101.18,70.56455669]
[1770016781235,138.4587,101.24,101.18,70.56455669]
[1770016781439,138.4753,101.23,101.15,70.5180544]
[1770016781846,147.3889,101.22,101.15,70.5180544]
[1770016782347,138.4587,101.24,101.07,951.30191241]
[1770016782348,138.5413,101.18,101.1,70.51640597]
[1770016782541,138.5275,101.19,101.1,70.51640597]
[1770016782846,147.448,101.18,101.1,70.51640597]
[1770016783049,138.5561,101.17,101.1,70.51640597]
[1770016783444,147.4635,101.17,101.1,70.51640597]
[1770016783646,138.5681,101.16,101.1,70.51640597]
[1770016783845,138.6246,101.12,101.04,416.89631133]
[1770016784038,138.6246,101.12,101.04,70.51631133]
[1770016784251,138.6093,101.13,101.04,70.51631133]
[1770016784438,138.5647,101.17,101.07,70.54662688]
[1770016784637,138.4984,101.22,101.12,70.54662688]
[1770016784840,138.4828,101.23,101.15,70.54662688]
[1770016785146,138.4864,101.22,101.15,70.54662688]
[1770016785643,8.9027,101.22,101.15,70.54662688]
[1770016786538,147.3887,101.22,101.15,70.54662688]
[1770016788950,147.3714,101.24,101.15,70.54662688]
[1770016789549,138.4762,101.23,101.15,70.54662688]
[1770016789950,147.3783,101.23,101.15,70.54662688]
[1770016790653,147.35,101.25,101.15,70.54662688]
[1770016790952,147.35,101.25,101.16,77.19686805]
[1770016791253,8.9002,101.25,101.16,77.19686805]
[1770016791643,8.8985,101.27,101.18,77.19693753]
[1770016791841,8.8985,101.27,101.2,77.19693753]
[1770016792041,138.4159,101.28,101.2,77.19693753]
[1770016792247,138.3981,101.29,101.2,77.19693753]
[1770016792647,138.4056,101.28,101.2,69.89036874]
[1770016792858,138.4045,101.28,101.2,69.89036874]
[1770016793156,138.3981,101.29,101.2,69.89036874]
[1770016793352,138.3764,101.3,101.22,69.88043274]
[1770016793557,465.4411,101.32,101.24,69.88043274]
[1770016793856,138.3456,101.33,101.24,69.88043274]
[1770016795057,138.3041,101.36,101.25,77.22372127]
[1770016795556,138.3081,101.35,101.25,77.22372127]
[1770016795954,138.3371,101.33,101.25,77.22372127]
[1770016796162,138.3371,101.33,101.25,69.91715248]
[1770016796660,138.3637,101.31,101.25,69.91715248]
[1770016796855,138.3371,101.33,101.25,69.91715248]
[1770016797957,138.349,101.32,101.25,69.91715248]
[1770016798455,138.349,101.32,101.23,69.92064447]
[1770016798958,8.8941,101.32,101.24,77.22721326]
[1770016799356,138.3229,101.34,101.24,77.22721326]
[1770016799758,138.3355,101.33,101.24,77.22721326]
[1770016799963,138.3506,101.32,101.24,77.22721326]
[1770016800163,138.3648,101.31,101.24,69.92064447]
[1770016800356,147.2735,101.3,101.24,69.92064447]
[1770016800559,138.4066,101.28,101.21,69.90653345]
[1770016800760,138.3936,101.29,101.21,69.90653345]
[1770016801161,138.4313,101.26,101.18,69.90653345]
[1770016801366,8.9012,101.24,101.18,69.90653345]
[1770016801563,138.4181,101.27,101.18,69.90653345]
[1770016802058,138.436,101.26,101.18,69.90653345]
[1770016802964,138.4041,101.28,101.2,70.04954781]
[1770016803164,138.4174,101.27,101.2,70.04954781]
[1770016803652,138.4174,101.27,101.16,70.04957406]
[1770016803653,138.4586,101.24,101.16,70.04957406]
[1770016803854,138.4732,101.23,101.16,70.04957406]
[1770016804059,138.4474,101.25,101.16,70.04957406]
[1770016804255,138.4584,101.24,101.16,70.04957406]
[1770016804455,138.4174,101.27,101.18,70.12495675]
[1770016804662,8.9003,101.25,101.18,70.12495675]
[1770016804864,138.4587,101.24,101.18,70.12495675]
[1770016805056,138.4315,101.26,101.18,70.12495675]
[1770016805861,8.8976,101.28,101.18,217.57035675]
[1770016806066,138.3869,101.3,101.21,77.43153526]
[1770016806265,138.4175,101.27,101.19,7.30656879]
[1770016806467,8.8994,101.26,101.19,77.46143432]
[1770016807765,147.3065,101.28,101.19,77.46143432]
[1770016808372,147.3065,101.28,101.21,7.30656879]
[1770016808872,147.3036,101.28,101.19,77.46143432]
[1770016809071,8.8979,101.28,101.19,77.46143432]
[1770016809869,147.3157,101.27,101.19,77.46143432]
[1770016810071,276.8764,101.26,101.17,77.82086842]
[1770016810369,466.7281,101.3,101.19,77.78021524]
[1770016810573,8.8979,101.28,101.19,77.78021524]
[1770016811664,328.38,101.3,101.2,208.9863874]
[1770016811975,138.3499,101.32,101.22,70.4735874]
[1770016812571,8.8944,101.32,101.23,77.79436551]
[1770016812877,138.334,101.34,101.24,70.48779672]
[1770016813171,8.8932,101.33,101.25,7.30656879]
[1770016813877,8.8942,101.32,101.24,70.48779672]
[1770016815075,147.2161,101.34,101.24,70.48779672]
[1770016815278,138.3234,101.34,101.24,70.48779672]
[1770016815472,8.8932,101.33,101.24,79.38829672]
[1770016815877,138.3184,101.35,101.24,79.38829672]
[1770016815878,138.3184,101.35,101.25,70.53941893]
[1770016816078,8.8923,101.34,101.25,79.43911893]
[1770016816470,8.8923,101.34,101.25,8.8997]
[1770016816674,8.8923,101.34,101.23,7.30656879]
[1770016816675,138.3418,101.33,101.23,7.30656879]
[1770016816875,138.3418,101.33,101.22,209.02982346]
[1770016817179,138.364,101.31,101.22,70.54582346]
[1770016817678,327.38,101.33,101.24,70.54575515]
[1770016819179,138.3292,101.34,101.24,70.54575515]
[1770016819380,8.8931,101.33,101.24,79.44635515]
[1770016819876,8.8941,101.32,101.24,70.54575515]
[1770016820977,147.243,101.32,101.24,70.54575515]
[1770016821875,8.8941,101.32,101.24,70.54575515]
[1770016822776,138.3292,101.34,101.24,79.44615515]
[1770016822777,147.2219,101.34,101.24,79.44615515]
[1770016822977,138.3292,101.34,101.24,79.44615515]
[1770016823182,138.3491,101.32,101.24,70.54575515]
[1770016823974,138.3358,101.33,101.24,70.54575515]
[1770016825381,138.291,101.37,101.27,70.66041943]
[1770016825587,1.71733123,101.39,101.29,209.05001943]
[1770016825782,138.255,101.39,101.29,70.66041943]
[1770016826483,8.8896,101.37,101.29,79.55671943]
[1770016826686,138.255,101.39,101.29,79.55671943]
[1770016827186,8.8887,101.38,101.29,79.55671943]
[1770016827883,473.8716,101.4,101.3,79.55203443]
[1770016828085,138.2146,101.42,101.32,70.65663443]
[1770016828281,138.1836,101.45,101.34,209.15870607]
[1770016828481,138.1568,101.47,101.36,70.83850607]
[1770016828682,138.1582,101.46,101.36,70.83850607]
[1770016828888,147.0549,101.45,101.36,79.72840607]
[1770016829083,147.0549,101.45,101.36,70.83850607]
[1770016829784,8.8828,101.45,101.36,70.83850607]
[1770016829991,8.8812,101.47,101.38,70.83839995]
[1770016831088,473.717,101.49,101.39,80.06895738]
[1770016831291,335.5994,101.49,101.4,71.18140034]
[1770016831685,146.98,101.51,101.41,71.18140034]
[1770016831881,145.39476879,101.52,101.42,71.18140034]
[1770016831882,138.0882,101.52,101.42,71.18140034]
[1770016832192,138.1062,101.5,101.42,71.18140034]
[1770016832382,138.1178,101.49,101.42,71.18140034]
[1770016832583,138.1178,101.49,101.39,80.07889873]
[1770016832985,138.1178,101.49,101.36,71.19149873]
[1770016832986,138.1594,101.46,101.36,71.19149873]
[1770016833189,145.43796879,101.48,101.38,71.19149873]
[1770016833587,147.0116,101.48,101.38,71.19149873]
[1770016834283,138.1591,101.46,101.38,71.19149873]
[1770016834790,8.8819,101.46,101.38,71.19149873]
[1770016834990,147.0412,101.46,101.38,71.19149873]
[1770016835689,147.0553,101.45,101.38,71.19149873]
[1770016836185,147.0707,101.44,101.35,71.23422454]
[1770016836387,138.2158,101.42,101.32,71.26101857]
[1770016836686,138.2019,101.43,101.33,71.26101857]
[1770016837390,147.0996,101.42,101.33,71.26101857]
[1770016837590,8.8856,101.42,101.33,71.26101857]
[1770016837785,471.77356879,101.44,101.33,71.26101857]
[1770016837989,471.77356879,101.44,101.34,71.12333324]
[1770016838489,326.28,101.44,101.35,71.12319815]
[1770016839181,147.0552,101.45,101.35,71.12319815]
[1770016839482,473.2552,101.45,101.35,71.12319815]
[1770016840082,335.0827,101.45,101.35,80.01389815]
[1770016840282,7.30656879,101.46,101.36,71.12306461]
[1770016840283,333.40656879,101.46,101.36,71.12306461]
[1770016840487,480.39955012,101.47,101.36,71.12306461]
[1770016840786,480.39955012,101.47,101.38,71.13889835]
[1770016840787,8.8812,101.47,101.38,71.13889835]
[1770016841293,147.04,101.46,101.38,71.13889835]
[1770016841991,8.8819,101.46,101.38,71.13889835]
[1770016842386,7.28125012,101.47,101.38,71.13889835]
[1770016842590,138.1452,101.47,101.38,71.13889835]
[1770016842791,138.1604,101.46,101.38,71.13889835]
[1770016842986,8.882,101.46,101.38,71.13889835]
[1770016843986,147.0414,101.46,101.38,71.13889835]
[1770016844787,138.1725,101.45,101.35,71.08148835]
[1770016844995,138.1853,101.44,101.35,71.08148835]
[1770016845189,464.1853,101.44,101.35,71.08148835]
[1770016845491,147.0838,101.43,101.35,71.08148835]
[1770016846094,147.0838,101.43,101.32,147.2303]
[1770016846095,138.2275,101.41,101.32,71.08136912]
[1770016846396,138.2954,101.36,101.26,70.67424516]
[1770016846598,138.283,101.37,101.27,79.57214516]
[1770016847096,138.2979,101.36,101.27,70.67424516]
[1770016847291,8.8914,101.35,101.27,70.67424516]
[1770016847997,326.04,101.36,101.27,70.67424516]
[1770016848194,147.173,101.37,101.27,70.67424516]
[1770016848499,8.8905,101.36,101.28,70.70426104]
[1770016850702,8.8915,101.35,101.25,218.1015089]
[1770016850998,8.8915,101.35,101.26,70.7586089]
[1770016851601,8.8915,101.35,101.26,79.6574089]
[1770016853099,138.3396,101.33,101.23,70.80094113]
[1770016853297,138.3766,101.3,101.2,70.80094113]
[1770016853500,145.62085012,101.33,101.23,70.8008667]
[1770016853698,138.3066,101.36,101.25,209.2439667]
[1770016853699,145.58785012,101.36,101.25,209.2439667]
[1770016854005,138.3217,101.34,101.25,70.8008667]
[1770016854498,470.80785012,101.36,101.25,70.8008667]
[1770016854499,7.28125012,101.36,101.25,70.8008667]
[1770016854700,138.2304,101.41,101.3,71.1315769]
[1770016854906,138.2551,101.39,101.3,71.1315769]
[1770016855698,8.8889,101.38,101.3,71.1315769]
[1770016855899,138.2674,101.38,101.3,71.1315769]
[1770016856099,138.2674,101.38,101.27,71.13146596]
[1770016856299,463.5874,101.38,101.27,71.13146596]
[1770016856695,138.2829,101.37,101.27,71.13146596]
[1770016857296,8.8907,101.36,101.27,71.13146596]
[1770016857497,332.60125012,101.38,101.28,71.20682969]
[1770016857702,138.2836,101.37,101.28,71.20682969]
[1770016858098,8.8888,101.38,101.28,71.20682969]
[1770016858403,334.3888,101.38,101.28,71.20682969]
[1770016858604,472.6569,101.38,101.28,80.10382969]
[1770016859104,147.1706,101.37,101.28,71.20682969]
[1770016859296,145.54935012,101.38,101.27,71.31850605]
[1770016859497,138.2542,101.39,101.29,71.31850605]
[1770016859800,8.888,101.39,101.29,218.60430605]
[1770016860106,463.5773,101.41,101.3,71.31850605]
[1770016860702,145.50645012,101.42,101.32,71.3654754]
[1770016861010,325.72,101.41,101.33,71.3654754]
[1770016861703,464.1406,101.43,101.33,71.3654754]
[1770016862296,8.8856,101.42,101.33,71.3654754]
[1770016862505,325.94,101.43,101.35,71.6105895]
[1770016862697,138.1831,101.45,101.35,71.6105895]
[1770016863202,464.1688,101.46,101.35,226.09003962]
[1770016863603,147.0546,101.45,101.35,87.78273962]
[1770016864505,464.1691,101.46,101.36,71.63884494]
[1770016864706,326.0,101.46,101.36,71.63884494]
[1770016864901,326.0,101.46,101.38,71.63884494]
[1770016865203,138.1035,101.5,101.39,71.63884494]
[1770016865407,464.138,101.49,101.39,71.63884494]
[1770016865811,138.1012,101.51,101.41,71.63869375]
[1770016866004,464.4212,101.51,101.41,71.63869375]
[1770016866210,326.28,101.5,101.41,71.63869375]
[1770016866710,464.3842,101.5,101.41,71.63869375]
[1770016866911,326.28,101.5,101.41,71.63869375]
[1770016867509,8.8775,101.51,101.42,71.54324125]
[1770016867702,326.42,101.53,101.42,71.54324125]
[1770016867909,326.42,101.53,101.44,71.50025028]
[1770016868103,335.2958,101.53,101.44,71.50025028]
[1770016868302,326.42,101.53,101.45,71.50025028]
[1770016868709,145.30125012,101.57,101.46,71.50011949]
[1770016868919,464.84,101.57,101.46,71.50011949]
[1770016869116,139.73437017,101.57,101.46,71.50011949]
[1770016869310,148.59547017,101.57,101.47,71.50011949]
[1770016869515,138.0357,101.55,101.47,71.50011949]
[1770016870014,148.59517017,101.57,101.47,71.50011949]
[1770016870307,145.25155012,101.6,101.48,71.47860353]
[1770016870515,137.9703,101.6,101.49,78.75985365]
[1770016870709,137.9951,101.58,101.5,71.47860353]
[1770016870913,137.9951,101.58,101.47,138.1429]